Workbook

Sheet OK
A1: تقبلوا وافر تقديرى وإحترامى *** وجزاكم الله خيرا وبارك فيكم *** أخيكم العبد الفقير إلى الله تعالى محاسب // سعيد بيرم *** وكل عام أنتم بخير بمناسبة حلول عيد الأضحى المبارك أعاده الله علينا وعليكم وعلى سائر الامة الإسلامية والعربية بكل خير *** نسألكم الدعاء
B2: الاستاذ الفاضل // ياسر خليل ابو البراء | F2: العبد الفقير الى تعالى // سعيد بيرم | N2: مثال عملى لحساب ضريبة الدمغة العادية بالدالة المعرفة
B3: فصل مبلغ ضريبة الدمغه العادية بنظام العمود الواحد الى عمودين احدهما للقروش والاخر للجنيهات بالدالة المعرفة | F3: الناتج على نظام العمود الواحد بالمعادلات | H3: الناتج على نظام العمود الواحد بالدالة المعرفة | J3: فصل المبلغ على نظام العمودين أحدهما للقروش والاخر للجيهات بالدالة المعرفة | N3: جملة المكافاة | P3: 10% معاشات | R3: نقابه 2% | T3: جملة المبالغ المعفاه بقوانين خاصة وفقا لقانون ضريبة الدخل على المرتبات رقم 91 لسنة 2005 وتعديلاته حتى القانون رقم 96 لسنة 2015 | V3: المبلغ الخاضع لضريبة الدمغه العادية قبل استبعاد الشريحة الاولى المعفاه وقدرها 50 حنيها | X3: ضريبة الدمغه الواجب استقطاعها وفقا لحد الاعفاء والشرائح المقررة طبقا لنص المادة 79 من قانون 111 لسنة 1981
B4: المبلغ | C4: ق | D4: ج | F4: ق.ج | H4: ق.ج | J4: ق | K4: ج | L4: ق | M4: ج | N4: ق | O4: ج | P4: ق | Q4: ج | R4: ق | S4: ج | T4: ق | U4: ج | V4: ق | W4: ج | X4: ق | Y4: ج
B5: 1363.25 | C5: =CEILING(MOD(abderahman(B5),1),0.05)*100 -> 10 | D5: =CEILING(INT(abderahman(B5)),0.05) -> 9 | F5: =IF(B5<=50,"",CEILING(IF(AND(B5>50,B5<=250),(B5-50)*0.006,IF(AND(B5>250,B5<=500),(B5-250)*65/10000+1.2,IF(AND(B5>500,B5<=1000),(B5-500)*7/1000+2.83,IF(AND(B5>1000,B5<=5000),(B5-1000)*75/10000+6.33,IF(AND(B5>5000,B5<=10000),(B5-5000)*8/1000+36.33,IF(B5>10000,(B5-10000)*3/1000+76.33)))))),0.05)) -> 9.1 | H5: =IFERROR(CEILING(abderahman(B5),0.05),"") -> 9.1 | J5: =IF(B5="","",RIGHT(B5*100,2)) -> 25 | K5: =IF(B5="","",((B5*100)-J5)/100) -> 1363 | L5: =CEILING(ROUND(MOD(abderahman(K5+J5/100),1),2),0.05)*100 -> 10 | M5: =INT(ROUND(abderahman(K5+J5/100),1)) -> 9 | N5: =IF(Y11="","",RIGHT(Y11*100,2)) -> 55 | O5: =IF(Y11="","",((Y11*100)-N5)/100) -> 1133 | P5: =IF(Y11="","",MOD(100*ROUND(SUM(O5,N5/100)*10%,2),100)) -> 36 | Q5: =IF(Y11="","",INT(100*ROUND(SUM(O5,N5/100)*10%,2)/100)) -> 113 | R5: =IF(Y11="","",IF(Y12="نقابى",MOD(100*ROUND(SUM(O5,N5/100)*2%,1),100),"")) -> 70 | S5: =IF(Y11="","",IF(Y12="نقابى",INT(ROUND(SUM(O5,N5/100)*2%,1)),"")) -> 22 | T5: =IFERROR(MOD(SUM(100*SUM(Q5,S5),P5,R5),100),"") -> 6 | U5: =IFERROR(INT(SUM(100*SUM(Q5,S5),P5,R5)/100),"") -> 136 | V5: =IFERROR(MOD(SUM(100*SUM(O5-U5),N5-T5),100),"") -> 49 | W5: =IFERROR(INT(SUM(100*SUM(O5-U5),N5-T5)/100),"") -> 997 | X5: =CEILING(ROUND(MOD(abderahman(W5+V5/100),1),2),0.05)*100 -> 35 | Y5: =IFERROR(INT(ROUND(abderahman(W5+V5/100),1)),"") -> 6
B6: 1148 | C6: 45 | D6: 7 | F6: 7.45 | H6: =IFERROR(CEILING(abderahman(B6),0.05),"") -> 7.45 | J6: =IF(B6="","",RIGHT(B6*100,2)) -> 00 | K6: =IF(B6="","",((B6*100)-J6)/100) -> 1148 | L6: 45 | M6: 7 | N6: الشريحة الاولى معفاة
B7: 1363.25 | C7: 10 | D7: 9 | F7: 9.1 | H7: 9.1 | J7: 25 | K7: 1363 | L7: 10 | M7: 9 | N7: الشريحة الثانية
B8: 1076.25 | C8: 95 | D8: 6 | F8: 6.95 | H8: 6.95 | J8: 25 | K8: 1076 | L8: 95 | M8: 6 | N8: الشريحة الثالثة
B9: 1363.25 | C9: 10 | D9: 9 | E9: 1700 | F9: 9.1 | H9: 9.1 | J9: 25 | K9: 1363 | L9: 10 | M9: 9 | N9: الشريحة الرابعة | S9: أساسى المرتب فى 30 / 6 / 2015 | Y9: 687.02
B10: 466.375 | C10: 65 | D10: 2 | F10: 2.65 | H10: 2.65 | J10: .5 | K10: 466.37 | L10: 65 | M10: 2 | N10: الشريحة الخامسة | S10: عدد ايام المكافأة | Y10: 33
B11: 1219.75 | C11: 100 | D11: 7 | F11: 8 | H11: 8 | J11: 75 | K11: 1219 | L11: 100 | M11: 8 | N11: الشريحة السادسة | S11: ج . م = فئة اليوم × عدد ايام المكافاة | Y11: =TRUNC(Y9*5%,2)*Y10 -> 1133.55
B12: 1040.375 | C12: 65 | D12: 6 | F12: 6.65 | H12: 6.65 | J12: .5 | K12: 1040.37 | L12: 65 | M12: 6 | N12: الشريحة السابعة | S12: ص . زمالة | Y12: نقابى
B13: 1327.375 | C13: 80 | D13: 8 | F13: 8.8 | H13: 8.8 | J13: .5 | K13: 1327.37 | L13: 80 | M13: 8 | N13: يطبق هذا المثال على ضريبة الدخل على المرتبات بذات الكيفية مع إختلاف الشرائح المنصوص عليها بنص المادة رقم 8 وفقا لقانون ضريبة الدخل على المرتبات رقم 91 لسنة 2005 وتعديلاته حتى القانون رقم 96 لسنة 2015
B14: 1291.5 | C14: 55 | D14: 8 | F14: 8.55 | H14: 8.55 | J14: 50 | K14: 1291 | L14: 55 | M14: 8
B15: 1591.45 | C15: 80 | D15: 10 | F15: 10.8 | H15: 10.8 | J15: 45 | K15: 1591 | L15: 80 | M15: 10
B20: 1900 | D20: 1363.25
B21: 1600 | D21: 1148
B22: 1900 | D22: 1363.25
B23: 1500 | D23: 1076.25
B24: 1900 | D24: 1363.25
B25: 650 | D25: 466.375
B26: 1700 | D26: 1219.75
B27: 1450 | D27: 1040.375
B28: 1850 | D28: 1327.375
B29: 1800 | D29: 1291.5

Sheet حساب
A1: عدد | B1: قيمة | C1: المبلغ | D1: الاستقطاعــــــات | O1: دمغة
D2: 0.12 | E2: 0.01 | F2: 0.0125 | G2: 0.03 | H2: 0.09 | I2: 0.01 | J2: 0.01
A3: 38 | B3: 50 | C3: =B3*A3 -> 1900 | D3: =C3*$D$2 -> 228 | E3: =C3*$E$2 -> 19 | F3: =C3*$F$2 -> 23.75 | G3: =C3*$G$2 -> 57 | H3: =C3*$H$2 -> 171 | I3: =C3*$I$2 -> 19 | J3: =C3*$J$2 -> 19 | K3: =SUM(D3:J3) -> 536.75 | L3: =IF(K4="","",RIGHT(K4*100,2)) -> 25 | M3: =IF(C3<=50,"",CEILING(IF(AND(C3>50,C3<=250),(C3-50)*0.006,IF(AND(C3>250,C3<=500),(C3-250)*65/10000+1.2,IF(AND(C3>500,C3<=1000),(C3-500)*7/1000+2.83,IF(AND(C3>1000,C3<=5000),(C3-1000)*75/10000+6.33,IF(AND(C3>5000,C3<=10000),(C3-5000)*8/1000+36.33,IF(C3>10000,(C3-10000)*3/1000+76.33)))))),0.05)) -> 13.1 | N3: 9.85 | O3: =ROUNDDOWN((C3-J3-I3-H3-G3-F3-E3-D3)*7.23/1000,2) -> 9.85
K4: =(C3-K3) -> 1363.25 | L4: =IF(K4="","",((K4*100)-L3)/100) -> 1363 | M4: =IF(K4<=50,"",CEILING(IF(AND(K4>50,K4<=250),(K4-50)*0.006,IF(AND(K4>250,K4<=500),(K4-250)*65/10000+1.2,IF(AND(K4>500,K4<=1000),(K4-500)*7/1000+2.83,IF(AND(K4>1000,K4<=5000),(K4-1000)*75/10000+6.33,IF(AND(K4>5000,K4<=10000),(K4-5000)*8/1000+36.33,IF(K4>10000,(K4-10000)*3/1000+76.33)))))),0.05)) -> 9.1
A5: 32 | B5: 50 | C5: =B5*A5 -> 1600 | D5: =C5*$D$2 -> 192 | E5: =C5*$E$2 -> 16 | F5: =C5*$F$2 -> 20 | G5: =C5*$G$2 -> 48 | H5: =C5*$H$2 -> 144 | I5: =C5*$I$2 -> 16 | J5: =C5*$J$2 -> 16 | K5: =SUM(D5:J5) -> 452 | L5: =IF(K6="","",RIGHT(K6*100,2)) -> 00 | M5: =IF(C5<=50,"",CEILING(IF(AND(C5>50,C5<=250),(C5-50)*0.006,IF(AND(C5>250,C5<=500),(C5-250)*65/10000+1.2,IF(AND(C5>500,C5<=1000),(C5-500)*7/1000+2.83,IF(AND(C5>1000,C5<=5000),(C5-1000)*75/10000+6.33,IF(AND(C5>5000,C5<=10000),(C5-5000)*8/1000+36.33,IF(C5>10000,(C5-10000)*3/1000+76.33)))))),0.05)) -> 10.85 | N5: 8.25 | O5: =ROUNDDOWN((C5-J5-I5-H5-G5-F5-E5-D5)*7.19/1000,2) -> 8.25
K6: =(C5-K5) -> 1148 | L6: =IF(K6="","",((K6*100)-L5)/100) -> 1148 | M6: =IF(K6<=50,"",CEILING(IF(AND(K6>50,K6<=250),(K6-50)*0.006,IF(AND(K6>250,K6<=500),(K6-250)*65/10000+1.2,IF(AND(K6>500,K6<=1000),(K6-500)*7/1000+2.83,IF(AND(K6>1000,K6<=5000),(K6-1000)*75/10000+6.33,IF(AND(K6>5000,K6<=10000),(K6-5000)*8/1000+36.33,IF(K6>10000,(K6-10000)*3/1000+76.33)))))),0.05)) -> 7.45
A7: 38 | B7: 50 | C7: =B7*A7 -> 1900 | D7: =C7*$D$2 -> 228 | E7: =C7*$E$2 -> 19 | F7: =C7*$F$2 -> 23.75 | G7: =C7*$G$2 -> 57 | H7: =C7*$H$2 -> 171 | I7: =C7*$I$2 -> 19 | J7: =C7*$J$2 -> 19 | K7: =SUM(D7:J7) -> 536.75 | L7: =IF(K8="","",RIGHT(K8*100,2)) -> 25 | N7: 9.85 | O7: =ROUNDDOWN((C7-J7-I7-H7-G7-F7-E7-D7)*7.23/1000,2) -> 9.85
K8: =(C7-K7) -> 1363.25 | L8: =IF(K8="","",((K8*100)-L7)/100) -> 1363
A9: 30 | B9: 50 | C9: =B9*A9 -> 1500 | D9: =C9*$D$2 -> 180 | E9: =C9*$E$2 -> 15 | F9: =C9*$F$2 -> 18.75 | G9: =C9*$G$2 -> 45 | H9: =C9*$H$2 -> 135 | I9: =C9*$I$2 -> 15 | J9: =C9*$J$2 -> 15 | K9: =SUM(D9:J9) -> 423.75 | L9: =IF(K10="","",RIGHT(K10*100,2)) -> 25 | N9: 7.7 | O9: =ROUNDDOWN((C9-J9-I9-H9-G9-F9-E9-D9)*7.19/1000,1) -> 7.7
K10: =(C9-K9) -> 1076.25 | L10: =IF(K10="","",((K10*100)-L9)/100) -> 1076
A11: 38 | B11: 50 | C11: =B11*A11 -> 1900 | D11: =C11*$D$2 -> 228 | E11: =C11*$E$2 -> 19 | F11: =C11*$F$2 -> 23.75 | G11: =C11*$G$2 -> 57 | H11: =C11*$H$2 -> 171 | I11: =C11*$I$2 -> 19 | J11: =C11*$J$2 -> 19 | K11: =SUM(D11:J11) -> 536.75 | L11: =IF(K12="","",RIGHT(K12*100,2)) -> 25 | N11: 9.85 | O11: =ROUNDDOWN((C11-J11-I11-H11-G11-F11-E11-D11)*7.23/1000,2) -> 9.85
K12: =(C11-K11) -> 1363.25 | L12: =IF(K12="","",((K12*100)-L11)/100) -> 1363
A13: 13 | B13: 50 | C13: =B13*A13 -> 650 | D13: =C13*$D$2 -> 78 | E13: =C13*$E$2 -> 6.5 | F13: =C13*$F$2 -> 8.125 | G13: =C13*$G$2 -> 19.5 | H13: =C13*$H$2 -> 58.5 | I13: =C13*$I$2 -> 6.5 | J13: =C13*$J$2 -> 6.5 | K13: =SUM(D13:J13) -> 183.625 | L13: =RIGHT(K14,2) -> 75 | N13: 2.9 | O13: =ROUNDDOWN((C13-J13-I13-H13-G13-F13-E13-D13)*6.3/1000,2) -> 2.93
K14: =(C13-K13) -> 466.375 | L14: =IF(K14="","",((K14*100)-L13)/100) -> 465.625
A15: 34 | B15: 50 | C15: =B15*A15 -> 1700 | D15: =C15*$D$2 -> 204 | E15: =C15*$E$2 -> 17 | F15: =C15*$F$2 -> 21.25 | G15: =C15*$G$2 -> 51 | H15: =C15*$H$2 -> 153 | I15: =C15*$I$2 -> 17 | J15: =C15*$J$2 -> 17 | K15: =SUM(D15:J15) -> 480.25 | L15: =N15/C15 -> 0.005147058824 | N15: 8.75 | O15: =ROUNDDOWN((C15-J15-I15-H15-G15-F15-E15-D15)*7.18/1000,2) -> 8.75
K16: =(C15-K15) -> 1219.75
A17: 29 | B17: 50 | C17: =B17*A17 -> 1450 | D17: =C17*$D$2 -> 174 | E17: =C17*$E$2 -> 14.5 | F17: =C17*$F$2 -> 18.125 | G17: =C17*$G$2 -> 43.5 | H17: =C17*$H$2 -> 130.5 | I17: =C17*$I$2 -> 14.5 | J17: =C17*$J$2 -> 14.5 | K17: =SUM(D17:J17) -> 409.625 | L17: =N17/C17 -> 0.005137931034 | N17: 7.45 | O17: =ROUNDDOWN((C17-J17-I17-H17-G17-F17-E17-D17)*7.169/1000,2) -> 7.45
K18: =(C17-K17) -> 1040.375
A19: 37 | B19: 50 | C19: =B19*A19 -> 1850 | D19: =C19*$D$2 -> 222 | E19: =C19*$E$2 -> 18.5 | F19: =C19*$F$2 -> 23.125 | G19: =C19*$G$2 -> 55.5 | H19: =C19*$H$2 -> 166.5 | I19: =C19*$I$2 -> 18.5 | J19: =C19*$J$2 -> 18.5 | K19: =SUM(D19:J19) -> 522.625 | L19: =N19/C19 -> 0.005189189189 | N19: 9.6 | O19: =ROUNDDOWN((C19-J19-I19-H19-G19-F19-E19-D19)*7.233/1000,2) -> 9.6
K20: =(C19-K19) -> 1327.375
A21: 36 | B21: 50 | C21: =B21*A21 -> 1800 | D21: =C21*$D$2 -> 216 | E21: =C21*$E$2 -> 18 | F21: =C21*$F$2 -> 22.5 | G21: =C21*$G$2 -> 54 | H21: =C21*$H$2 -> 162 | I21: =C21*$I$2 -> 18 | J21: =C21*$J$2 -> 18 | K21: =SUM(D21:J21) -> 508.5 | L21: =N21/C21 -> 0.005166666667 | N21: 9.3 | O21: =ROUNDDOWN((C21-J21-I21-H21-G21-F21-E21-D21)*7.233/1000,2) -> 9.34
K22: =(C21-K21) -> 1291.5

Sheet دمغات
A1: الاساسى | B1: الحافز | E1: الدمغات | F1: الناتج
A2: 1000 | B2: 2000 | C2: 1363.25 | D2: =C2*E2 -> 102.24375 | E2: =IF(SUM(A2:B2)>=5000,0.08,IF(SUM(A2:B2)>=1000,0.075,IF(SUM(A2:B2)>=500,0.07,IF(SUM(A2:B2)>=250,0.065,IF(SUM(A2:B2)>=50,0.06,"معفاة"))))) -> 0.075 | F2: =IFERROR(SUM(A2:B2)-SUM(A2:B2)*E2,SUM(A2:B2)-0) -> 2775 | K2: مجموع A2+B2 لو لو اقل من 50 معفاة = من 50 الى اقل من 250 يتم احتساب 6% = من 250 الى اقل من 500 يتم احتساب 6.5 % = من 500 الى اقل من 1000 يتم احتساب 7% = من 1000 الى اقل من 5000 يتم احتساب 7.5% = من 5000 الى اقل من 10000 يتم احتساب 8%
A3: 2 | B3: 47 | C3: 1363.25 | E3: معفاة | F3: 49
A4: 2 | B4: 48 | C4: 1148 | D4: 68.88 | E4: 0.06 | F4: 47
A5: 1 | B5: 249 | C5: 1363.25 | D5: =C5*E5 -> 88.61125 | E5: 0.065 | F5: 233.75
A6: 2 | B6: 249 | C6: 1076.25 | D6: =C6*E6 -> 69.95625 | E6: 0.065 | F6: 234.685
A7: 500 | B7: 10 | C7: 1363.25 | D7: 95.4275 | E7: 0.07 | F7: 474.3
A8: 500 | B8: 499 | C8: 466.375 | D8: 32.64625 | E8: 0.07 | F8: 929.07
A9: 1000 | B9: 1 | C9: 1219.75 | D9: 91.48125 | E9: 0.075 | F9: 925.925
A10: 1000 | B10: 999 | C10: 1040.375 | D10: 78.028125 | E10: 0.075 | F10: 1849.075
A11: 1000 | B11: 3999 | C11: 1327.375 | D11: 99.553125 | E11: 0.075 | F11: 4624.075
A12: 4000 | B12: 1000 | C12: 1291.5 | D12: 103.32 | E12: 0.08 | F12: 4600
A13: 4000 | B13: 2000 | C13: =B13+A13 -> 6000 | D13: 480 | E13: 0.08 | F13: 5520
A14: 4000 | B14: 3000 | C14: 7000 | D14: 560 | E14: 0.08 | F14: 6440
A15: 4000 | B15: 4000 | C15: 8000 | D15: 640 | E15: 0.08 | F15: 7360
A16: 4000 | B16: 6000 | C16: 10000 | D16: 800 | E16: 0.08 | F16: 9200

Sheet VBA
A1: سعيد بيرم ابو سلمى وعبدالحمن | H1: ياسرخليل ابو البراء
A2: المبلغ على نظام العمود الواحد | B2: المبلغ على نظام القرش والجنيه ذو الخانتين | D2: الناتج على نظام العمود الواحد بالمعادلات سعيد بيرم | E2: الناتج على نظام العمود الواحد بالكود | F2: الناتج على نظام القرش والجنيه ذو الخانتين | H2: المعادلات بالمشاركة المشار اليها
B3: ق | C3: ج | F3: ق | G3: ج | H3: ق | I3: ج
A4: 50 | B4: =IF(A4="","",RIGHT(A4*100,2)) -> 00 | C4: =IF(A4="","",((A4*100)-B4)/100) -> 50 | D4: =IF(A4<=50,"",CEILING(IF(AND(A4>50,A4<=250),(A4-50)*0.006,IF(AND(A4>250,A4<=500),(A4-250)*65/10000+1.2,IF(AND(A4>500,A4<=1000),(A4-500)*7/1000+2.83,IF(AND(A4>1000,A4<=5000),(A4-1000)*75/10000+6.33,IF(AND(A4>5000,A4<=10000),(A4-5000)*8/1000+36.33,IF(A4>10000,(A4-10000)*3/1000+76.33)))))),0.05)) ->  | E4: =CEILING(abderahman(A4),0.05) -> 0 | F4: =IFERROR(CEILING(ROUND(MOD(abderahman(C4+B4/100),1),2),0.05)*100,"") -> 0 | G4: =IFERROR(INT(ROUND(abderahman(C4+B4/100),1)),"") -> 0 | H4: =MOD(abderahman(A4),1)*100 -> 0 | I4: =INT(abderahman(A4)) -> 0
A5: 250 | B5: =IF(A5="","",RIGHT(A5*100,2)) -> 00 | C5: 250 | D5: =IF(A5<=50,"",CEILING(IF(AND(A5>50,A5<=250),(A5-50)*0.006,IF(AND(A5>250,A5<=500),(A5-250)*65/10000+1.2,IF(AND(A5>500,A5<=1000),(A5-500)*7/1000+2.83,IF(AND(A5>1000,A5<=5000),(A5-1000)*75/10000+6.33,IF(AND(A5>5000,A5<=10000),(A5-5000)*8/1000+36.33,IF(A5>10000,(A5-10000)*3/1000+76.33)))))),0.05)) -> 1.2 | E5: =CEILING(abderahman(A5),0.05) -> 1.2 | F5: =IFERROR(CEILING(ROUND(MOD(abderahman(C5+B5/100),1),2),0.05)*100,"") -> 20 | G5: =IFERROR(INT(ROUND(abderahman(C5+B5/100),1)),"") -> 1 | H5: =MOD(abderahman(A5),1)*100 -> 20 | I5: =INT(abderahman(A5)) -> 1
A6: 500 | B6: 00 | C6: 500 | D6: 2.85 | E6: 2.85 | F6: 85 | G6: 2 | H6: 82 | I6: 2
A7: 1000 | B7: 00 | C7: 1000 | D7: 6.35 | E7: 6.35 | F7: 35 | G7: 6 | H7: 32 | I7: 6
A8: 5000 | B8: 00 | C8: 5000 | D8: 36.35 | E8: 36.35 | F8: 35 | G8: 36 | H8: 34 | I8: 36
A9: 10000 | B9: 00 | C9: 10000 | D9: 76.35 | E9: 76.35 | F9: 35 | G9: 76 | H9: 34 | I9: 76
A10: 12500 | B10: 00 | C10: 12500 | D10: 83.85 | E10: 83.85 | F10: 85 | G10: 83 | H10: 84 | I10: 83
A11: 1958.04 | B11: 04 | C11: 1958 | D11: 13.55 | E11: 13.55 | F11: 55 | G11: 13 | H11: 52 | I11: 13
A12: 1898.57 | B12: 57 | C12: 1898 | D12: 13.1 | E12: 13.1 | F12: 10 | G12: 13 | H12: 7 | I12: 13
A13: 1742.45 | B13: 45 | C13: 1742 | D13: 11.9 | E13: 11.9 | F13: 90 | G13: 11 | H13: 90 | I13: 11
A14: 1591.45 | B14: 45 | C14: 1591 | D14: 10.8 | E14: 10.8 | F14: 80 | G14: 10 | H14: 77 | I14: 10
A15: 1479.05 | B15: 05 | C15: 1479 | D15: 9.95 | E15: 9.95 | F15: 95 | G15: 9 | H15: 93 | I15: 9
A16: 1570.64 | B16: 64 | C16: 1570 | D16: 10.65 | E16: 10.65 | F16: 65 | G16: 10 | H16: 61 | I16: 10
A17: 1202.83 | B17: 83 | C17: 1202 | D17: 7.9 | E17: 7.9 | F17: 90 | G17: 7 | H17: 86 | I17: 7
A18: 1190.4 | B18: 40 | C18: 1190 | D18: 7.8 | E18: 7.8 | F18: 80 | G18: 7 | H18: 76 | I18: 7
A19: 1461.62 | B19: 62 | C19: 1461 | D19: 9.8 | E19: 9.8 | F19: 80 | G19: 9 | H19: 80 | I19: 9
A20: 1534.72 | B20: 72 | C20: 1534 | D20: 10.35 | E20: 10.35 | F20: 35 | G20: 10 | H20: 35 | I20: 10
A21: 1467.71 | B21: 71 | C21: 1467 | D21: 9.85 | E21: 9.85 | F21: 85 | G21: 9 | H21: 84 | I21: 9
A22: 1397.67 | B22: 67 | C22: 1397 | D22: 9.35 | E22: 9.35 | F22: 35 | G22: 9 | H22: 32 | I22: 9
